{"text_format":"1","workbook":"xlsx","n_sheets":5,"sheets":["Cover","Report","Footnotes","Stacked&Idle","Disclaimers&Definitions"],"not_rendered":{"charts":0,"images":4,"macros":0,"external_links":0,"defined_names":18,"comments":0,"pivot_tables":0},"unopened":[],"bounds":{"document_bytes":16777216,"sheet_cells":100000,"rows_first":2000,"rows_last":500,"rows_between":2000,"halvings":0,"cell_chars":16384,"cell_head_chars":4096},"cells_cut":0,"cells_raw":0,"read":"whole","date_system":"1900"}

{"sheet":"Cover","index":0,"n_rows":11,"n_cols":1,"rows_kept":11,"cut":false,"hidden":false,"merged":[]}
[]
[]
[]
[]
[]
[]
[]
[]
[]
[]
[" "]

{"sheet":"Report","index":1,"n_rows":182,"n_cols":23,"rows_kept":182,"cut":false,"hidden":false,"merged":[[171,0,171,12],[2,0,2,12],[3,0,3,12],[4,19,4,22],[6,19,6,22],[4,14,4,17],[6,14,6,17]]}
[]
["Updated: October 26, 2015"]
["Revisions Noted in Bold"]
["Dynamically positioned «"]
[null,null,null,null,null,null,null,null,null,null,null,"Dayrate on","Dayrate on",null,"Estimated Out of Service Days (4)",null,null,null,null,"Estimated Out of Service Days (4)"]
[null,null,null,null,"Yr. (1)","Water","Drilling ",null,null,"Estimated","Estimated","Current","Previous"]
[null,"Footnote ","Floater","Dynamically","Entered","Depth","Depth",null,null," Contract","Expiration","Contract (3)","Contract (3)",null,2015,null,null,null,null,2016]
["Rig Type/Name","References","Type","Positioned","Service","(Feet)","(Feet)","Location","Customer","Start Date (2)"," Date (2)","(Dollars)","(Dollars)",null,"Q1","Q2","Q3","Q4",null,"Q1","Q2","Q3","Q4"]
[]
["Rigs Under Construction (12)"]
[]
["Deepwater Thalassa","(6), (11)","ship","«","TBA",12000,40000,"USGOM","Shell","2015-12-23","2025-12-19",519000,"N/A"]
["Deepwater Proteus","(6), (11)","ship","«","TBA",12000,40000,"TBA","Shell","Q2 2016","Q2 2026",519000,"N/A"]
["Deepwater Pontus ","(6), (11)","ship","«","TBA",12000,40000,"TBA","Shell","Q4 2017","Q4 2027",519000,"N/A"]
["Deepwater Poseidon","(6), (11)","ship","«","TBA",12000,40000,"TBA","Shell","Q1 2018","Q1 2028",519000,"N/A"]
["Deepwater Conqueror","(6), (8), (11)","ship","«","TBA",12000,40000,"USGOM","Chevron","Q4 2016","Q4 2021",589000,"N/A"]
["JSPL Ultra-Deepwater Drillship TBN 1",-9,"ship","«","TBA",12000,40000,"TBA"]
["JSPL Ultra-Deepwater Drillship TBN 2",-9,"ship","«","TBA",12000,40000,"TBA"]
["Transocean Cepheus",-12,null,null,"TBA",400,35000,"TBA"]
["Transocean Cassiopeia",-12,null,null,"TBA",400,35000,"TBA"]
["Transocean Centaurus",-12,null,null,"TBA",400,35000,"TBA"]
["Transocean Cetus",-12,null,null,"TBA",400,35000,"TBA"]
["Transocean Circinus",-12,null,null,"TBA",400,35000,"TBA"]
[]
["Ultra-Deepwater (27)"]
[]
["Deepwater Asgard",null,"ship","«",2014,12000,40000,"USGOM","Chevron","2015-04-01","2017-06-23",623000,600000,null,0,0,0,0,null,0,0,0,0]
["Deepwater Invictus","(6), (17)","ship","«",2014,12000,40000,"USGOM","BHP Billiton","2014-07-28","2017-03-26",600000,"N/A",null,0,0,0,0,null,0,0,0,0]
["Discoverer Americas",-6,"ship","«",2009,12000,40000,"USGOM","Statoil","2015-05-29","2016-03-31",590000,735000,null,0,0,0,0,null,0,0,0,0]
["Deepwater Champion",null,"ship","«",2011,12000,40000,"USGOM","ExxonMobil","2015-05-31","2015-11-16",670000,708000,null,0,0,0,0,null,0,0,0,0]
[null,null,null,null,null,null,null,"USGOM","ExxonMobil","2015-11-16","2016-01-31",395000,670000]
["Discoverer Clear Leader"," (6), (8), (16)","ship","«",2009,12000,40000,"USGOM","Chevron","2014-11-01","2018-10-01",581000,569000,null,0,0,0,0,null,0,0,0,0]
["Discoverer Inspiration","(6), (8), (16)","ship","«",2010,12000,40000,"USGOM","Chevron","2015-03-30","2020-03-31",585000,523000,null,17.9375,0,0,0,null,0,0,0,0]
["Dhirubhai Deepwater KG1","  (6), (7), (8) ","ship","«",2009,12000,35000,"Brazil","Petrobras","2014-12-31","2017-12-01",397000,510000,null,4.520833333333333,0,0,0,null,14,16,0,0]
["Dhirubhai Deepwater KG2",null,"ship","«",2010,12000,35000,"India","Reliance","2015-08-06","2015-10-31",295000,395000,null,13.427083333333334,0,0,54,null,0,0,0,0]
["Discoverer India",-14,"ship","«",2010,12000,40000,"USGOM","Reliance","2013-09-01","2016-09-01",528000,499000,null,0,16,0,0,null,0,0,0,0]
[null,null,null,null,null,null,null,"India","Reliance","2016-09-01","2021-01-01",508000,528000]
["Petrobras 10000"," (6), (7), (8)","ship","«",2009,12000,37500,"Brazil","Petrobras","2011-02-01","2019-08-17",419000,"N/A",null,0,0,0,0,null,0,0,0,0]
["Discoverer Deep Seas",-6,"ship","«",2001,10000,35000,"USGOM","Murphy Oil","2013-10-31","2016-11-30",604000,456000,null,0,23,49,0,null,0,0,0,0]
["Discoverer Enterprise",null,"ship","«",1999,10000,35000,null,null,null,"Stacked",null,null,null,0,0,0,0,null,0,0,0,0]
["Discoverer Spirit",null,"ship","«",2000,10000,35000,null,null,null,"Stacked",null,null,null,0,0,0,0,null,0,0,0,0]
["GSF C.R. Luigs",null,"ship","«",2000,10000,35000,null,null,null,"Stacked",null,null,null,29,0,0,0,null,0,0,0,0]
["GSF Jack Ryan",null,"ship","«",2000,10000,35000,null,null,null,"Stacked",null,null,null,0,0,0,0,null,0,0,0,0]
["Deepwater Discovery",null,"ship","«",2000,10000,30000,null,null,null,"Stacked",null,null,null,0,0,0,0,null,0,0,0,0]
["Deepwater Frontier",null,"ship","«",1999,10000,30000,null,null,null,"Idle",null,null,null,0,0,0,0,null,0,0,0,0]
["Deepwater Millennium","(7)","ship","«",1999,10000,30000,"Korea","Woodside","2015-09-01","2015-11-20",584000,593000,null,0,0,0,0,null,0,0,0,0]
[null,"(20)",null,null,null,null,null,"Myanmar","Woodside",{"$f":"K46","v":"2015-11-20"},"2016-04-23",{"$f":"M46","v":593000},{"$f":"L46","v":584000}]
["Deepwater Pathfinder",null,"ship","«",1998,10000,30000,null,null,null,"Stacked",null,null,null,0,0,0,0,null,0,0,0,0]
["Cajun Express",-19,"semi","«",2001,8500,35000,"Ivory Coast","CNR","2014-12-14","2015-12-01",495000,487000,null,13.614583333333334,0,0,0,null,0,0,0,0]
["Deepwater Nautilus","(6), (8)","semi",null,2000,8000,30000,"USGOM","Shell","2012-08-01","2017-08-01",531000,551000,null,0,60.541666666666664,92,10,null,0,0,0,0]
["Discoverer Luanda"," (6), (13)","ship","«",2010,7500,40000,"Angola","BP","2011-01-01","2018-01-01",487000,"N/A",null,0,9,0,0,null,0,0,0,0]
["GSF Development Driller I"," (7), (8) ","semi","«",2005,7500,37500,"Angola","ExxonMobil","2015-06-02","2016-06-16",367000,"N/A",null,90,78,0,0,null,0,0,0,0]
[null," (7), (8) ",null,null,null,null,null,"Angola","ExxonMobil","2016-06-16","2017-06-16",371000,{"$f":"L52","v":367000}]
["GSF Development Driller II",-8,"semi","«",2005,7500,37500,"Romania","Lukoil","2015-05-01","2016-01-01",315000,355000,null,0,0,0,0,null,0,0,0,0]
["Development Driller III","(6), (16)","semi","«",2009,7500,37500,"USGOM","BP","2009-11-01","2016-11-01",422000,"N/A",null,0,0,0,0,null,0,0,0,0]
["Sedco Energy",null,"semi","«",2001,7500,35000,null,null,null,"Stacked",null,null,null,0,0,0,0,null,0,0,0,0]
["Sedco Express",null,"semi","«",2001,7500,35000,null,null,null,"Stacked",null,null,null,0,0,0,0,null,0,0,0,0]
[]
[null,null,null,null,null,null,null,null,null,null,null,null,"Total Estimated Days Out of Service",null,{"$f":"SUM(O27:O57)","v":168.5},{"$f":"SUM(P27:P57)","v":186.54166666666666},{"$f":"SUM(Q27:Q57)","v":141},{"$f":"SUM(R27:R57)","v":64},null,{"$f":"SUM(T27:T57)","v":14},{"$f":"SUM(U27:U57)","v":16},{"$f":"SUM(V27:V57)","v":0},{"$f":"SUM(W27:W57)","v":0}]
[null,null,null,null,null,null,null,null,null,null,null,null,"Estimated Average Contract Dayrate(5)",null,511000,512000,514000,496000,null,512000,515000,513000,514000]
[]
["Harsh Environment (7)"]
[]
["Transocean Barents",null,"semi","«",2009,10000,30000,null,null,null,"Idle",null,null,null,0,0,0,0,null,0,0,0,0]
["Transocean Spitsbergen",null,"semi","«",2010,10000,30000,null,null,null,"Idle",null,null,null,42.385416666666664,0,0,0,null,0,0,0,0]
[null,"(6), (7), (21)",null,null,null,null,null,"NNS","OMV","2016-01-01","2016-03-31",471000,"N/A"]
["Henry Goodrich",null,"semi",null,"1985/2007",5000,30000,null,null,null,"Stacked",null,null,null,0,0,0,0,null,0,0,0,0]
["Transocean Leader",null,"semi",null,"1987/1997",4500,25000,"UKNS","Enquest","2015-05-18","2018-05-17",335000,377000,null,45.979166666666664,17,0,0,null,0,0,0,0]
[null,"(18)",null,null,null,null,null,"UKNS","Enquest","2018-05-18","2019-05-17",305000,335000]
["Paul B. Loyd, Jr.",-7,"semi",null,1990,2000,25000,"UKNS","BP","2015-11-20","2016-03-17",435000,433000,null,0,0,20,72,null,0,0,0,0]
[null,-7,null,null,null,null,null,"UKNS","BP","2016-03-01","2016-09-01",442000,{"$f":"L70","v":435000}]
[null,-7,null,null,null,null,null,"UKNS","BP","2016-09-01","2017-03-01",449000,{"$f":"L71","v":442000}]
[null,-7,null,null,null,null,null,"UKNS","BP","2017-03-01","2017-06-01",455000,{"$f":"L72","v":449000}]
["Transocean Arctic","(6), (7), (21)","semi",null,1986,1650,25000,"NNS","Rig Management Norway","2014-07-31","2016-03-31",373000,414000,null,0,0,0,0,null,0,0,0,0]
["Polar Pioneer",-6,"semi",null,1985,1500,25000,"Alaska","Shell","2015-10-25","2015-12-31",561000,624000,null,0,0,0,0,null,0,0,0,0]
[null,-6,null,null,null,null,null,"Alaska","Shell","2015-12-31","2016-04-30",593000,561000]
[null,-6,null,null,null,null,null,"Alaska","Shell","2016-04-30","2016-06-28",561000,593000]
[null,-6,null,null,null,null,null,"Alaska","Shell","2016-06-28","2016-10-25",624000,561000]
[null,-6,null,null,null,null,null,"Alaska","Shell","2016-10-25","2016-12-31",561000,624000]
[null,-6,null,null,null,null,null,"Alaska","Shell","2016-12-31","2017-06-30",593000,561000]
[]
[null,null,null,null,null,null,null,null,null,null,null,null,"Total Estimated Days Out of Service",null,{"$f":"SUM(O64:O80)","v":88.364583333333329},{"$f":"SUM(P64:P80)","v":17},{"$f":"SUM(Q64:Q80)","v":20},{"$f":"SUM(R64:R80)","v":72},null,{"$f":"SUM(T64:T80)","v":0},{"$f":"SUM(U64:U80)","v":0},{"$f":"SUM(V64:V80)","v":0},{"$f":"SUM(W64:W80)","v":0}]
[null,null,null,null,null,null,null,null,null,null,null,null,"Estimated Average Contract Dayrate(5)",null,469000,466000,463000,396000,null,438000,428000,467000,420000]
[]
["Deepwater (6)"]
[]
["Deepwater Navigator"," (7), (8), (15)","ship","«","1971/2000",7200,25000,"Brazil","Petrobras","2011-05-01","2016-02-20",361000,190000,null,0,0,0,0,null,0,0,0,0]
["Transocean Marianas",null,"semi",null,"1979/1998",7000,30000,null,null,null,"Idle",null,null,null,0,0,0,0,null,0,0,0,0]
["Sedco 706"," (6), (7), (8)","semi","«","1976/1994/ 2008",6500,25000,"Brazil","Petrobras","2014-05-01","2016-09-01",277000,361000,null,0,55.5,3,0,null,0,0,0,0]
["Sedco 702","(6), (7)","semi","«","1973/2007",6500,25000,"Nigeria","Shell","2012-09-01","2016-02-01",461000,357000,null,0,0,0,0,null,0,0,0,0]
["Jack Bates",null,"semi",null,"1986/1997",5400,30000,"Australia","Inpex","2015-02-01","2016-02-18",370000,420000,null,0,0,0,0,null,0,0,0,0]
["M.G. Hulme, Jr.",null,"semi",null,"1983/1996",5000,25000,null,null,null,"Idle",null,null,null,0,0,0,0,null,0,0,0,0]
[]
[null,null,null,null,null,null,null,null,null,null,null,null,"Total Estimated Days Out of Service",null,{"$f":"SUM(O87:O92)","v":0},{"$f":"SUM(P87:P92)","v":55.5},{"$f":"SUM(Q87:Q92)","v":3},{"$f":"SUM(R87:R92)","v":0},null,{"$f":"SUM(T87:T92)","v":0},{"$f":"SUM(U87:U92)","v":0},{"$f":"SUM(V87:V92)","v":0},{"$f":"SUM(W87:W92)","v":0}]
[null,null,null,null,null,null,null,null,null,null,null,null,"Estimated Average Contract Dayrate(5)",null,348000,361000,357000,367000,null,350000,277000,277000,277000]
[]
["Midwater Floaters (12)"]
[]
["Transocean Driller"," (7), (8)","semi",null,1991,3000,25000,"Brazil","Petrobras","2010-07-01","2016-07-01",256000,116000,null,0,0,0,0,null,0,0,0,0]
["GSF Rig 140",null,"semi",null,1983,2800,25000,null,null,null,"Idle",null,null,null,0,0,0,0,null,0,0,0,0]
["Sedco 711",null,"semi",null,1982,1800,25000,"UKNS","Talisman","2015-06-01","2015-12-01",366000,361000,null,0,0,0,0,null,0,0,0,0]
["Transocean John Shaw",-7,"semi",null,1982,1800,25000,"UKNS","Taqa","2015-01-28","2016-01-28",414000,353000,null,0,0,0,0,null,0,0,0,0]
["Sedco 712",null,"semi",null,1983,1600,25000,"UKNS","Talisman","2015-04-01","2015-10-01",397000,391000,null,25.427083333333332,0,0,0,null,0,0,0,0]
[null,null,null,null,null,null,null,"UKNS","Talisman","2015-10-01","2016-04-01",403000,397000]
[null,null,null,null,null,null,null,"UKNS","Talisman","2016-04-01","2016-10-01",409000,403000]
["Sedco 714",-7,"semi",null,"1983/1997",1600,25000,"UKNS","Total","2015-09-01","2016-03-01",421000,433000,null,0,0,0,0,null,0,0,0,0]
["GSF Grand Banks",null,"semi",null,1984,1500,25000,null,null,null,"Idle",null,null,null,0,0,0,0,null,0,0,0,0]
["Actinia",null,"semi",null,1982,1500,25000,null,null,null,"Idle",null,null,null,0,0,0,0,null,0,0,0,0]
["Transocean Winner"," (6), (7)","semi",null,1983,1500,25000,"NNS","Marathon","2015-08-15","2016-07-01",498000,419000,null,0,0,0,0,null,0,0,0,0]
["Transocean Searcher",null,"semi",null,"1983/1988",1500,25000,null,null,null,"Stacked",null,null,null,0,0,0,0,null,0,0,0,0]
["Transocean Prospect",null,"semi",null,"1983/1992",1500,25000,null,null,null,"Stacked",null,null,null,0,0,0,0,null,0,0,0,0]
["Sedco 704",null,"semi",null,"1974/1993",1000,25000,"UKNS","Maersk","2015-06-30","2016-02-01",373000,362000,null,0,0,0,0,null,0,0,0,0]
[null,null,null,null,null,null,null,"UKNS","Maersk",{"$f":"K112","v":"2016-02-01"},"2016-04-23",219000,{"$f":"+L112","v":373000}]
[]
[null,null,null,null,null,null,null,null,null,null,null,null,"Total Estimated Days Out of Service",null,{"$f":"SUM(O99:O112)","v":25.427083333333332},{"$f":"SUM(P99:P112)","v":0},{"$f":"SUM(Q99:Q112)","v":0},{"$f":"SUM(R99:R112)","v":0},null,{"$f":"SUM(T99:T112)","v":0},{"$f":"SUM(U99:U112)","v":0},{"$f":"SUM(V99:V112)","v":0},{"$f":"SUM(W99:W112)","v":0}]
[null,null,null,null,null,null,null,null,null,null,null,null,"Estimated Average Contract Dayrate(5)",null,351000,350000,377000,389000,null,385000,381000,433000,409000]
[]
["High Specification Jackups (10)"]
[]
["GSF Constellation I",-8,null,null,2003,400,30000,"Indonesia","Total","2012-09-01","2016-01-01",150000,140000,null,0,0,0,0,null,8,0,0,0]
[null,null,null,null,null,null,null,"UAE","Bunduq","2016-04-28","2016-12-27",104000,{"$f":"L120","v":150000}]
["GSF Constellation II",-6,null,null,2004,400,30000,"Gabon","Vaalco","2014-10-31","2016-07-01",170000,165000,null,0,0,0,0,null,0,0,0,0]
["GSF Galaxy I",-7,null,null,"1991/2001",400,30000,"UKNS","Total","2015-05-01","2015-11-30",219000,208000,null,0,0,0,0,null,0,0,0,0]
[null,-7,null,null,null,null,null,"UKNS","Total","2015-11-30","2016-05-30",223000,{"$f":"L123","v":219000}]
[null,-7,null,null,null,null,null,"UKNS","Total","2016-05-30","2016-11-30",227000,223000]
[null,-7,null,null,null,null,null,"UKNS","Total","2016-11-30","2017-05-30",230000,227000]
["GSF Galaxy II",null,null,null,1998,400,30000,null,null,null,"Stacked",null,null,null,0,0,0,0,null,0,0,0,0]
["GSF Galaxy III",null,null,null,1999,400,30000,null,null,null,"Stacked",null,null,null,0,0,0,0,null,0,0,0,0]
["Transocean Honor"," (6), (13)",null,null,2012,400,30000,"Angola","Chevron","2015-04-30","2016-04-30",194000,155000,null,0,0,0,0,null,0,0,0,0]
["GSF Monarch",null,null,null,1986,350,30000,null,null,null,"Stacked",null,null,null,0,0,0,0,null,0,0,0,0]
["Transocean Andaman",null,null,null,2013,350,35000,"Thailand","Chevron","2013-05-17","2016-05-24",150000,"N/A",null,0,0,0,0,null,0,0,0,0]
[null,null,null,null,null,null,null,"Thailand","Chevron","2016-05-24","2017-05-15",115000,150000]
["Transocean Siam Driller",null,null,null,2013,350,35000,"Thailand","Chevron","2013-03-27","2018-03-26",140000,"N/A",null,0,0,0,0,null,0,0,0,0]
["Transocean Ao Thai",null,null,null,2013,350,35000,"Thailand","Chevron","2013-10-10","2018-10-17",139000,"N/A",null,0,0,0,0,null,0,0,3,0]
[null,null,null,null,null,null,null,null,null,null,null,null,"Total Estimated Days Out of Service",null,{"$f":"SUM(O120:O134)","v":0},{"$f":"SUM(P120:P134)","v":0},{"$f":"SUM(Q120:Q134)","v":0},{"$f":"SUM(R120:R134)","v":0},null,{"$f":"SUM(T120:T134)","v":8},{"$f":"SUM(U120:U134)","v":0},{"$f":"SUM(V120:V134)","v":3},{"$f":"SUM(W120:W134)","v":0}]
[null,null,null,null,null,null,null,null,null,null,null,null,"Estimated Average Contract Dayrate(5)",null,167000,166000,166000,166000,null,165000,154000,146000,149000]
[]
[]
[null,null,null,null,null,null,null,null,null,null,null,null,"Total Estimated Days Out of Service",null,{"$f":"+O135+O115+O82+O94+O59","v":282.29166666666663},{"$f":"+P135+P115+P82+P94+P59","v":259.04166666666663},{"$f":"+Q135+Q115+Q82+Q94+Q59","v":164},{"$f":"+R135+R115+R82+R94+R59","v":136},null,{"$f":"+T135+T115+T82+T94+T59","v":22},{"$f":"+U135+U115+U82+U94+U59","v":16},{"$f":"+V135+V115+V82+V94+V59","v":3},{"$f":"+W135+W115+W82+W94+W59","v":0}]
[]
[]
["Fixed-Price Options - See Footnote 10"]
[]
[]
[]
["Ultra-Deepwater"]
[]
["Deepwater Champion",null,"ship","«",2011,12000,40000,"USGOM","ExxonMobil","2016-01-31","2016-02-16",395000,395000]
[null,null,null,null,null,null,null,"USGOM","ExxonMobil","2016-02-16","2016-03-16",395000,395000]
[null,null,null,null,null,null,null,"USGOM","ExxonMobil","2016-03-16","2016-04-16",395000,395000]
[null,null,null,null,null,null,null,"USGOM","ExxonMobil","2016-04-16","2016-05-16",395000,395000]
[null,null,null,null,null,null,null,"USGOM","ExxonMobil","2016-05-16","2016-06-16",395000,395000]
[null,null,null,null,null,null,null,"USGOM","ExxonMobil","2016-06-16","2016-07-16",395000,395000]
[null,null,null,null,null,null,null,"USGOM","ExxonMobil","2016-07-16","2016-08-16",395000,395000]
[null,null,null,null,null,null,null,"USGOM","ExxonMobil","2016-08-16","2016-09-16",395000,395000]
["GSF Development Driller II",-6,"semi","«",2005,7500,37500,"Romania","Lukoil","2016-01-30","2016-12-31",315000,315000]
[]
["Harsh Environment"]
[]
["Polar Pioneer",-6,"semi",null,1985,1500,25000,"Alaska","Shell","2017-06-17","2017-10-31",623000,589000]
["Paul B. Loyd, Jr.",-7,"semi",null,1990,2000,25000,"UKNS","BP","2017-06-01","2017-09-01",455000,453000]
[null,-7,null,null,null,null,null,"UKNS","BP","2017-09-01","2018-03-01",462000,{"$f":"+L161","v":455000}]
[null,-7,null,null,null,null,null,"UKNS","BP","2018-03-01","2018-06-01",469000,{"$f":"+L162","v":462000}]
[]
["High Specification Jackups "]
[]
["GSF Galaxy I","(6), (7)",null,null,"1991/2001",400,30000,"UKNS","Total","2017-05-28","2018-05-27",240000,231000]
[null,"(6), (7)",null,null,null,null,null,"UKNS","Total","2018-05-27","2019-05-27",250000,240000]
["Transocean Andaman",null,null,null,2013,350,35000,"Thailand","Chevron","2017-05-15","2018-05-15",110000,115000]
[]
["Revenue Efficiency"]
["Revenue efficiency is defined as actual contract drilling revenues for the measurement period divided by the maximum revenue calculated for the measurement period, expressed as a percentage.  Maximum revenue is defined as the greatest amount of contract drilling revenues the drilling unit could earn for the measurement period, excluding amounts related to incentive provisions. Revenue Efficiency does not apply during Out of Service Days (Shipyard, Mobilizations, Demobilizations, Contract Preparation)."]
[]
[null,"Q2 2015 Actual","Q1 2015 Actual","Q4 2014 Actual","Q3 2014 Actual","Q2 2014 Actual","Q1 2014 Actual","Q4 2013 Actual","Q3 2013 Actual"]
["Ultra-Deepwater Floaters",0.97,0.97199999999999998,0.95399999999999996,0.91600000000000004,0.94,0.96399999999999997,0.89955622855029127,0.92500000000000004]
["Harsh Environment Floaters",0.98399999999999999,0.96799999999999997,0.96,0.94699999999999995,0.95699999999999996,0.96299999999999997,0.92090164845652989,0.999]
["Deepwater Floaters",1.0029999999999999,0.95899999999999996,0.96299999999999997,0.93300000000000005,0.94499999999999995,1.0049999999999999,0.94950991933742523,0.91100000000000003]
["Midwater Floaters",0.95299999999999996,0.91400000000000003,0.93,0.92200000000000004,0.97,0.91100000000000003,0.92296592012509227,0.95299999999999996]
["High-Specification Jackups",0.98599999999999999,0.99299999999999999,0.99,0.97,0.97299999999999998,0.94499999999999995,0.9715615119659291,0.98899999999999999]
["Total Fleet - Continuing Operations",0.97199999999999998,0.95899999999999996,0.95299999999999996,0.92600000000000005,0.95,0.95699999999999996,0.91700000000000004,0.94]
[]
["Estimated Contract Drilling Revenue can be calculated as: Paid Days on Contract * Average Contract Dayrate * Revenue Efficiency"]

{"sheet":"Footnotes","index":2,"n_rows":27,"n_cols":3,"rows_kept":27,"cut":false,"hidden":false,"merged":[[25,2,25,13],[26,2,26,13],[4,1,4,2],[8,2,8,13],[6,2,6,13],[7,2,7,13],[9,2,9,13],[24,2,24,13],[10,2,10,13],[11,2,11,13],[12,2,12,13],[13,2,13,13],[14,2,14,13],[15,2,15,13],[20,2,20,13],[16,2,16,13],[17,2,17,12],[21,2,21,12],[19,2,19,13],[23,2,23,13],[18,2,18,13],[22,2,22,13]]}
[]
[null,{"$f":"Report!A2","v":"Updated: October 26, 2015"}]
[null,{"$f":"Report!A3","v":"Revisions Noted in Bold"}]
[]
[null,"Footnotes"]
[]
[null,"(1)","Dates shown are the original service date and the date of the most recent upgrade, if any."]
[null,"(2)","Estimated Contract Start and Estimated Expiration Dates are calculated as follows: (1) for events estimated to occur between the 1st and 15th of a month, the previous month is reported (i.e. a contract which is estimated to commence on May 4, 2015 will be reported as commencing in April 2015) and (2) for events estimated to occur between the 16th and the end of a month, the actual month is reported (i.e. a contract which is estimated to commence on May 24, 2015 will be reported as commencing in May 2015). Expiration dates represent the company's current estimate of the earliest date the contract for each rig is likely to expire. Some rigs have two or more contracts in continuation, so the last line shows the estimated earliest availability. Many contracts permit the customer to extend the contract.  "]
[null,"(3)","Represents the full operating dayrate, although the average dayrate over the term of the contract will be lower and could be substantially lower. Does not reflect incentive programs which are typically based on the rig's operating performance against a performance curve. Please refer to the “Customer Contract Duration, Timing and Dayrates and Risks Associated with Operations” section of the Disclaimers & Definitions for a description of dayrates. This column may not reflect the rate currently being received under the contract as a result of an applicable standby rate or other rate, which typically is less than the contract dayrate."]
[null,"(4)","The out of service time represents those days where a rig is scheduled to be out of service and not be available to earn an operating dayrate. Please refer to the “Out of Service Days (Shipyards, Mobilizations, Demobilizations, Contract Preparation)” section of the Disclaimers & Definitions for a full description.  "]
[null,"(5)","Estimated Average Contract Dayrate is defined as the average contracted full operating dayrate to be earned per revenue earning day. See note (3) for definition of full operating dayrate."]
[null,"(6)","Reflects the current contracted dayrate which could reflect prior cost escalations, or de-escalations, and could change in the future due to further cost escalations, or de-escalations."]
[null,"(7)","Reflects the current contracted dayrate which, along with costs, includes a foreign currency component. Changes in the value of the U.S. Dollar relative to certain foreign currencies will result in an adjustment to the dayrate according to the terms of the contract. The dayrate adjustment generally offsets the foreign currency exchange-related change in costs."]
[null,"(8)","Current contract provides for a bonus incentive opportunity not reflected in the stated current contract dayrate."]
[null,"(9)","The two drillships on order from Sembcorp Marine's subsidiary, Jurong Shipyard, are expected to be delivered in the second quarter of 2019 and the first quarter of 2020, respectively."]
[null,"(10)","Fixed price options may be exercised at the customer’s discretion. During periods when dayrates on new contracts are increasing relative to existing contracts, the likelihood of customers’ exercising fixed price options increases. During periods when dayrates on new contracts are decreasing relative to existing contracts, the likelihood of customers’ exercising fixed price options declines."]
[null,"(11)","The contract is expected to start in the quarter indicated. Factors that could influence the contract start date include shipyard delivery, customer acceptance, and mobilization to operating location, among others."]
[null,"(12)","The first of five newbuild high-specification jackups contracted to Keppel FELS Limited's shipyard in Singapore is expected to be delivered from the shipyard in the first quarter of 2018 and the remaining four jackups delivered at approximately six-month intervals thereafter."]
[null,"(13)","The rig is owned by a joint venture in which the company owns less than a 100 percent interest. Dayrate reflects 100 percent of the contract rate."]
[null,"(14)","The customer may elect to have the operating dayrate for the last five years of the contract fluctuate based on crude oil price with a floor of $458,250 corresponding to a crude oil price of less than or equal to $50 per barrel, and a ceiling of $558,250 corresponding to a crude oil price of $100 per barrel or greater. "]
[null,"(15)","While the customer has the option to add any out of service days to the end of the contract, the Estimated Expiration Date does not reflect any extension due to this option until actually exercised by the customer."]
[null,"(16)","The rig is owned by Transocean Partners LLC in which the company owns less than a 100% interest. Please refer to Transocean Partners LLC (NYSE: RIGP) Fleet Status Report which can be found at www.transoceanpartners.com."]
[null,"(17)","Mobilization, customer commissioning and acceptance testing commenced in March 2014. Revenue of approximately $52 million earned from March 2014 to July 2014 will be recognized over the remaining three-year contract period ending in March 2017."]
[null,"(18)","The dayrate for the last year of the contract will be set three months prior to the third anniversary of the contract commencement date, subject to a floor dayrate of $305,000 and a ceiling dayrate of $365,000, pursuant to the terms of the contract."]
[null,"(19)","Based on the rig's performance, the dayrate can fluctuate between $445,000 and $495,000. "]
[null,"(20)","Reflects the current contracted dayrate for Australia operations; dayrate will be adjusted to reflect change in location to Myanmar."]
[null,"(21)","The OMV contract, originally awarded to the Transocean Arctic, has been transferred to the Transocean Spitsbergen."]

{"sheet":"Stacked&Idle","index":3,"n_rows":179,"n_cols":10,"rows_kept":179,"cut":false,"hidden":false,"merged":[[2,0,2,11],[34,0,34,15]]}
[]
[{"$f":"Report!A2","v":"Updated: October 26, 2015"}]
[{"$f":"Report!A3","v":"Revisions Noted in Bold"}]
[]
["Rig Type/Name","Start Date"]
["Stacked Rigs (14)"]
[]
["Discoverer Spirit","2015-03-15"]
["GSF Jack Ryan","2015-03-18"]
["Deepwater Discovery","2015-03-18"]
["Deepwater Pathfinder","2015-03-18"]
["GSF C.R. Luigs","2015-06-01"]
["GSF Galaxy III","2015-07-01"]
["GSF Monarch","2015-07-02"]
["Discoverer Enterprise","2015-09-01"]
["Sedco Energy","2015-09-01"]
["Sedco Express","2015-09-01"]
["Henry Goodrich","2015-09-01"]
["Transocean Searcher","2015-09-01"]
["Transocean Prospect","2015-09-01"]
["GSF Galaxy II","2015-09-01"]
[]
["Idle Rigs (8)"]
["Deepwater Frontier","2015-01-07"]
["M.G. Hulme, Jr.","2015-04-23"]
["Transocean Marianas","2015-05-16"]
["Transocean Spitsbergen","2015-06-07"]
["Actinia","2015-08-01"]
["Transocean Barents","2015-09-01"]
["GSF Rig 140","2015-09-01"]
["GSF Grand Banks","2015-10-01"]
[]
[]
["Stacked and Idle rigs detailed above are not currently operating on contract.  Start date denotes when rig commences idle or stacked status."]
["An \"Idle\" rig is between contracts, readily available for  operations, and operating costs are typically at or near normal levels.  A \"Stacked\" rig, on the other hand, is manned by a reduced crew or unmanned and typically has reduced operating costs and is (i) preparing for an extended period of inactivity, (ii) expected to continue to be inactive for an extended period, or (iii) completing a period of extended inactivity.  However, stacked rigs will continue to incur operating costs at or above normal operating costs for 30 to 60 days following initiation of stacking."]
[]
[]
[]
[]
[]
[]
[]
[]
[]
[]
[]
[]
[]
[]
[]
[]
[]
[]
[]
[]
[]
[]
[]
[]
[]
[]
[]
[]
[]
[]
[]
[]
[]
[]
[]
[]
[]
[]
[]
[]
[]
[]
[]
[]
[]
[]
[]
[]
[]
[]
[]
[]
[]
[]
[]
[]
[]
[]
[]
[]
[]
[]
[]
[]
[]
[]
[]
[]
[]
[]
[]
[]
[]
[]
[]
[]
[]
[]
[]
[]
[]
[]
[]
[]
[]
[]
[]
[]
[]
[]
[]
[]
[]
[]
[]
[]
[]
[]
[]
[]
[]
[]
[]
[]
[]
[]
[]
[]
[]
[]
[]
[]
[]
[]
[]
[]
[]
[]
[]
[]
[]
[]
[]
[]
[]
[]
[]
[]
[]
[]
[]
[]
[]
[]
[]
[]
[]
[]
[]
[]
[]
[]
[null,null,null,null,null,null,null,null,null,"2013-06-01"]
[null,null,null,null,null,null,null,null,{"$f":"+J178","v":"2013-06-01"},"2013-09-01"]

{"sheet":"Disclaimers&Definitions","index":4,"n_rows":3,"n_cols":1,"rows_kept":3,"cut":false,"hidden":false,"merged":[[2,0,2,11]]}
[" "]
[]
["DISCLAIMERS & DEFINITIONS"]